fUST/lending_fUST_20241121
["ID","MTS","AMOUNT","RATE_DAILY","PERIOD"]
[342829504,1732165838748,-1559.48,0.000272,31]
[342829505,1732165838757,-1559.48,0.000272,31]
[342829506,1732165838766,-1559.48,0.000272,31]
[342829507,1732165838776,-1559.48,0.000272,31]
[342829509,1732165838785,-1559.48,0.000272,31]
[342829510,1732165838794,-1559.48,0.000272,31]
[342829511,1732165838804,-1559.48,0.000272,31]
[342829512,1732165838813,-1559.48,0.000272,31]
[342829513,1732165838823,-1559.48,0.000272,31]
[342829514,1732165838833,-1559.48,0.000272,31]
[342829515,1732165838842,-151.0,0.000272,7]
[342829516,1732165838852,-224.452263,0.000272,7]
[342829518,1732165838861,-224.452263,0.000272,7]
[342829519,1732165838872,-324.126891,0.000272,7]
[342829521,1732165838882,-151.0,0.000272,7]
[342829522,1732165838891,-151.0,0.000272,7]
[342829523,1732165838900,-1192.693642,0.000272,7]
[342829524,1732165838909,-1192.693642,0.000272,7]
[342829525,1732165838919,-718.492232,0.000272,7]
[342829526,1732165838928,-718.492232,0.000272,7]
[342829527,1732165838938,-1352.09865,0.000272,7]
[342829528,1732165838947,-1352.09865,0.000272,7]
[342829529,1732165838958,-623.483661,0.000272,7]
[342829530,1732165838972,-151.0,0.000272,7]
[342829531,1732165838981,-623.483661,0.000272,7]
[342829532,1732165838991,-301.984354,0.000272,7]
[342829533,1732165839000,-301.984354,0.000272,7]
[342829534,1732165839012,-151.0,0.000272,7]
[342829535,1732165839021,-151.0,0.000272,7]
[342829536,1732165839031,-151.0,0.000272,7]
[342829537,1732165839042,-151.0,0.000272,7]
[342829538,1732165839052,-271.149504,0.000272,7]
[342829539,1732165839062,-271.149504,0.000272,7]
[342829540,1732165839072,-151.0,0.000272,7]
[342829541,1732165839081,-1143.936926,0.000272,7]
[342829542,1732165839091,-1143.936926,0.000272,7]
[342829543,1732165839100,-151.0,0.000272,7]
[342829544,1732165839109,-240.507187,0.000272,7]
[342829545,1732165839119,-268.258061,0.000272,7]
[342829546,1732165839128,-151.0,0.000272,7]
[342829547,1732165839138,-240.507187,0.000272,7]
[342829548,1732165839148,-151.0,0.000272,7]
[342829549,1732165839157,-151.0,0.000272,7]
[342829550,1732165839166,-156.356085,0.000272,7]
[342829551,1732165839175,-706.149298,0.000272,7]
[342829552,1732165839185,-706.149298,0.000272,7]
[342829553,1732165839194,-151.0,0.000272,7]
[342829554,1732165839203,-2361.82,0.00027397,2]
[342829555,1732165839212,-2844.81,0.00027397,2]
[342829556,1732165839224,-187.49656294,0.00027397,2]
[342829557,1732165839234,-2361.82,0.00027671,2]
[342829558,1732165839243,-2844.81,0.00027671,2]
[342829559,1732165839252,-706.149298,0.00027671,7]
[342829560,1732165839261,-706.149298,0.00027671,7]
[342829561,1732165839271,-151.0,0.00027671,7]
[342829562,1732165839280,-153.0,0.00027699,30]
[342829563,1732165839289,-153.0,0.00027699,30]
[342829564,1732165839298,-153.0,0.00027699,30]
[342829565,1732165839308,-155.742269,0.000277,7]
[342829566,1732165839317,-151.0,0.000277,7]
[342829567,1732165839326,-151.0,0.000277,7]
[342829568,1732165839335,-151.0,0.000277,7]
[342829569,1732165839344,-151.0,0.000277,7]
[342829570,1732165839353,-151.0,0.000277,7]
[342829571,1732165839363,-151.0,0.000277,7]
[342829572,1732165839376,-151.0,0.000277,7]
[342829573,1732165839387,-151.0,0.000277,7]
[342829574,1732165839396,-151.0,0.000277,7]
[342829575,1732165839405,-151.0,0.000277,7]
[342829576,1732165839414,-151.0,0.000277,7]
[342829578,1732165839423,-151.0,0.000277,7]
[342829579,1732165839432,-151.0,0.000277,7]
[342829581,1732165839442,-151.0,0.000277,7]
[342829582,1732165839451,-229.717091,0.000277,7]
[342829584,1732165839462,-1559.48,0.000277,31]
[342829586,1732165839475,-1559.48,0.000277,31]
[342829587,1732165839486,-1559.48,0.000277,31]
[342829589,1732165839496,-1559.48,0.000277,31]
[342829591,1732165839506,-1559.48,0.000277,31]
[342829592,1732165839516,-1559.48,0.000277,31]
[342829593,1732165839526,-1559.48,0.000277,31]
[342829594,1732165839536,-1559.48,0.000277,31]
[342829595,1732165839546,-1559.48,0.000277,31]
[342829596,1732165839556,-1559.48,0.000277,31]
[342829597,1732165839565,-1559.48,0.000277,31]
[342829598,1732165839576,-1559.48,0.000277,31]
[342829599,1732165839587,-1559.48,0.000277,31]
[342829600,1732165839598,-1559.48,0.000277,31]
[342829602,1732165839608,-1559.48,0.000277,31]
[342829604,1732165839617,-1559.48,0.000277,31]
[342829605,1732165839627,-1559.48,0.000277,31]
[342829607,1732165839636,-1559.48,0.000277,31]
[342829609,1732165839646,-1559.48,0.000277,31]
[342829611,1732165839656,-151.0,0.000277,7]
[342829613,1732165839665,-1559.48,0.000277,31]
[342829614,1732165839674,-1559.48,0.000277,31]
[342829615,1732165839684,-1559.48,0.000277,31]
[342829616,1732165839694,-1559.48,0.000277,31]
[342829617,1732165839703,-1559.48,0.000277,31]
[342829619,1732165839713,-224.452263,0.000277,7]
[342829620,1732165839728,-224.452263,0.000277,7]
[342829621,1732165839738,-324.126891,0.000277,7]
[342829622,1732165839747,-151.0,0.000277,7]
[342829623,1732165839757,-151.0,0.000277,7]
[342829624,1732165839766,-1192.693642,0.000277,7]
[342829625,1732165839775,-1192.693642,0.000277,7]
[342829626,1732165839784,-718.492232,0.000277,7]
[342829627,1732165839794,-718.492232,0.000277,7]
[342829628,1732165839803,-1352.09865,0.000277,7]
[342829629,1732165839812,-1352.09865,0.000277,7]
[342829630,1732165839820,-623.483661,0.000277,7]
[342829631,1732165839830,-151.0,0.000277,7]
[342829632,1732165839839,-623.483661,0.000277,7]
[342829633,1732165839848,-301.984354,0.000277,7]
[342829635,1732165839857,-301.984354,0.000277,7]
[342829636,1732165839866,-151.0,0.000277,7]
[342829637,1732165839875,-151.0,0.000277,7]
[342829639,1732165839886,-206.735126,0.000277,7]
[342829640,1732165839895,-151.0,0.000277,7]
[342829641,1732165839904,-271.149504,0.000277,7]
[342829643,1732165839913,-271.149504,0.000277,7]
[342829644,1732165839922,-151.0,0.000277,7]
[342829645,1732165839932,-1143.936926,0.000277,7]
[342829646,1732165839941,-1143.936926,0.000277,7]
[342829647,1732165839950,-151.0,0.000277,7]
[342829648,1732165839962,-240.507187,0.000277,7]
[342829649,1732165839981,-151.0,0.000277,7]
[342829650,1732165839991,-240.507187,0.000277,7]
[342829651,1732165840000,-151.0,0.000277,7]
[342829652,1732165840010,-151.0,0.000277,7]
[342829653,1732165840019,-151.0,0.00027709,7]
[342829654,1732165840028,-151.0,0.00027709,7]
[342829655,1732165840038,-151.0,0.00027709,7]
[342829656,1732165840049,-151.0,0.00027709,7]
[342829657,1732165840058,-1143.936926,0.00027709,7]
[342829658,1732165840067,-1143.936926,0.00027709,7]
[342829659,1732165840076,-151.0,0.00027709,7]
[342829660,1732165840085,-240.507187,0.00027709,7]
[342829661,1732165840095,-151.0,0.00027709,7]
[342829662,1732165840104,-240.507187,0.00027709,7]
[342829663,1732165840113,-151.0,0.00027709,7]
[342829664,1732165840123,-706.149298,0.00027709,7]
[342829665,1732165840133,-706.149298,0.00027709,7]
[342829666,1732165840144,-151.0,0.00027709,7]
[342829667,1732165840154,-9355.42674244,0.00027709,17]
[342829668,1732165840164,-5000.0,0.00027709,13]
[342829669,1732165840173,-304.475979,0.00027836,30]
[342829670,1732165840183,-2361.82,0.00027945,2]
[342829671,1732165840192,-2844.81,0.00027945,2]
[342829672,1732165840201,-500.0,0.00028,120]
[342829673,1732165840210,-9384.02000001,0.00028,34]
[342829674,1732165840221,-151.0,0.00028219,7]
[342829675,1732165840230,-151.0,0.00028219,7]
[342829676,1732165840239,-253.715022,0.00028219,7]
[342829677,1732165840248,-151.0,0.00028219,7]
[342829678,1732165840259,-2361.89932738,0.00028219,2]
[342829679,1732165840268,-2844.83561893,0.00028219,2]
[342829680,1732165840277,-154.409816,0.000283,7]
[342829681,1732165840286,-151.0,0.000283,7]
[342829682,1732165840296,-151.0,0.000283,7]
[342829683,1732165840306,-290.985124,0.000283,7]
[342829684,1732165840315,-151.0,0.000283,7]
[342829685,1732165840325,-151.0,0.000283,7]
[342829686,1732165840413,-151.0,0.000283,7]
[342829687,1732165840422,-154.144648,0.000283,7]
[342829688,1732165840432,-151.0,0.000283,7]
[342829689,1732165840441,-151.0,0.000283,7]
[342829690,1732165840451,-158.280374,0.000283,7]
[342829691,1732165840460,-229.717091,0.000283,7]
[342829692,1732165840471,-1559.48,0.000283,31]
[342829693,1732165840481,-151.0,0.000283,7]
[342829694,1732165840491,-1559.48,0.000283,31]
[342829695,1732165840500,-1559.48,0.000283,31]
[342829696,1732165840510,-1559.48,0.000283,31]
[342829697,1732165840520,-1559.48,0.000283,31]
[342829698,1732165840529,-1559.48,0.000283,31]
[342829699,1732165840539,-1559.48,0.000283,31]
[342829700,1732165840549,-1559.48,0.000283,31]
[342829701,1732165840559,-1559.48,0.000283,31]
[342829702,1732165840568,-1559.48,0.000283,31]
[342829703,1732165840578,-1559.48,0.000283,31]
[342829704,1732165840587,-1559.48,0.000283,31]
[342829705,1732165840596,-1559.48,0.000283,31]
[342829706,1732165840606,-1559.48,0.000283,31]
[342829707,1732165840615,-1559.48,0.000283,31]
[342829708,1732165840625,-1559.48,0.000283,31]
[342829709,1732165840635,-1559.48,0.000283,31]
[342829710,1732165840644,-1559.48,0.000283,31]
[342829711,1732165840654,-1559.48,0.000283,31]
[342829712,1732165840664,-1559.48,0.000283,31]
[342829713,1732165840674,-1559.48,0.000283,31]
[342829714,1732165840683,-1559.48,0.000283,31]
[342829715,1732165840692,-1559.48,0.000283,31]
[342829716,1732165840703,-1559.48,0.000283,31]
[342829717,1732165840712,-224.452263,0.000283,7]
[342829718,1732165840724,-224.452263,0.000283,7]
[342829719,1732165840733,-324.126891,0.000283,7]
[342829720,1732165840743,-151.0,0.000283,7]
[342829721,1732165840752,-155.295854,0.000283,7]
[342829722,1732165840761,-1192.693642,0.000283,7]
[342829723,1732165840771,-1192.693642,0.000283,7]
[342829724,1732165840779,-718.492232,0.000283,7]
[342829725,1732165840789,-718.492232,0.000283,7]
[342829726,1732165840798,-1352.09865,0.000283,7]
[342829727,1732165840807,-1352.09865,0.000283,7]
[342829728,1732165840817,-623.483661,0.000283,7]
[342829729,1732165840826,-151.0,0.000283,7]
[342829730,1732165840835,-623.483661,0.000283,7]
[342829731,1732165840845,-301.984354,0.000283,7]
[342829732,1732165840854,-301.984354,0.000283,7]
[342829733,1732165840863,-151.0,0.000283,7]
[342829734,1732165840872,-151.0,0.000283,7]
[342829735,1732165840881,-151.0,0.000283,7]
[342829736,1732165840891,-271.149504,0.000283,7]
[342829737,1732165840900,-271.149504,0.000283,7]
[342829738,1732165840909,-151.0,0.000283,7]
[342829739,1732165840919,-1143.936926,0.000283,7]
[342829740,1732165840928,-1143.936926,0.000283,7]
[342829741,1732165840937,-151.0,0.000283,7]
[342829742,1732165840947,-240.507187,0.000283,7]
[342829743,1732165840958,-151.0,0.000283,7]
[342829744,1732165840974,-240.507187,0.000283,7]
[342829745,1732165840983,-151.0,0.000283,7]
[342829746,1732165840993,-706.149298,0.000283,7]
[342829747,1732165841003,-706.149298,0.000283,7]
[342829748,1732165841013,-508327.77386557,0.000284,120]
[342829749,1732165841023,-151.0,0.000284,7]
[342829750,1732165841032,-151.0,0.000284,7]
[342829751,1732165841041,-151.0,0.000284,7]
[342829752,1732165841050,-191.856014,0.000284,7]
[342829753,1732165841060,-151.0,0.000284,7]
[342829754,1732165841070,-151.0,0.000284,7]
[342829755,1732165841079,-151.0,0.000284,7]
[342829756,1732165841089,-151.0,0.000284,7]
[342829757,1732165841098,-253.715022,0.000284,7]
[342829758,1732165841107,-151.0,0.000284,7]
[342829759,1732165841116,-151.0,0.000284,7]
[342829760,1732165841126,-229.717091,0.000284,7]
[342829761,1732165841137,-152.456017,0.000284,7]
[342829762,1732165841146,-224.452263,0.000284,7]
[342829763,1732165841156,-224.452263,0.000284,7]
[342829764,1732165841166,-324.126891,0.000284,7]
[342829765,1732165841175,-151.0,0.000284,7]
[342829766,1732165841185,-1192.693642,0.000284,7]
[342829767,1732165841195,-1192.693642,0.000284,7]
[342829768,1732165841205,-718.492232,0.000284,7]
[342829769,1732165841214,-718.492232,0.000284,7]
[342829770,1732165841226,-1352.09865,0.000284,7]
[342829771,1732165841236,-623.483661,0.000284,7]
[342829772,1732165841245,-151.0,0.000284,7]
[342829773,1732165841254,-1352.09865,0.000284,7]
[342829774,1732165841263,-623.483661,0.000284,7]
[342829775,1732165841272,-301.984354,0.000284,7]
[342829776,1732165841282,-301.984354,0.000284,7]
[342829777,1732165841291,-151.0,0.000284,7]
[342829778,1732165841300,-151.0,0.000284,7]
[342829779,1732165841309,-151.0,0.000284,7]
[342829780,1732165841318,-271.149504,0.000284,7]
[342829781,1732165841327,-271.149504,0.000284,7]
[342829782,1732165841336,-151.0,0.000284,7]
[342829783,1732165841346,-1143.936926,0.000284,7]
[342829784,1732165841355,-1143.936926,0.000284,7]
[342829785,1732165841368,-151.0,0.000284,7]
[342829786,1732165841381,-240.507187,0.000284,7]
[342829787,1732165841394,-232.099906,0.000284,7]
[342829788,1732165841407,-240.507187,0.000284,7]
[342829789,1732165841420,-151.0,0.000284,7]
[342829790,1732165841431,-706.149298,0.000284,7]
[342829791,1732165841443,-706.149298,0.000284,7]
[342829792,1732165841455,-5000.0,0.00028405,30]
[342829793,1732165841467,-251.1572225,0.00028478,120]
[342829794,1732165841480,-330.0,0.00028564,2]
[342829795,1732165841492,-151.0,0.00028637,7]
[342829796,1732165841504,-151.0,0.00028637,7]
[342829797,1732165841518,-151.0,0.00028637,7]
[342829798,1732165841530,-151.995813,0.00028637,7]
[342829799,1732165841544,-151.0,0.00028637,7]
[342829800,1732165841557,-152.2379895,0.00028658,30]
[342829801,1732165841569,-151.0,0.00028667,7]
[342829802,1732165841581,-151.0,0.00028667,7]
[342829803,1732165841593,-262.595567,0.00028667,7]
[342829804,1732165841605,-151.0,0.00028667,7]
[342829805,1732165841616,-151.0,0.00028667,7]
[342829806,1732165841630,-151.0,0.00028667,7]
[342829807,1732165841642,-151.0,0.00028667,7]
[342829808,1732165841657,-151.0,0.00028667,7]
[342829809,1732165841669,-151.0,0.00028667,7]
[342829810,1732165841679,-151.0,0.00028667,7]
[342829811,1732165841690,-205.935799,0.00028667,7]
[342829812,1732165841703,-167.675776,0.00028667,7]
[342829813,1732165841717,-151.0,0.00028667,7]
[342829814,1732165841730,-151.0,0.00028667,7]
[342829815,1732165841743,-151.0,0.00028667,7]
[342829816,1732165841756,-151.0,0.00028667,7]
[342829817,1732165841769,-151.0,0.00028667,7]
[342829818,1732165841781,-264.010936,0.00028667,7]
[342829819,1732165841794,-151.0,0.00028667,7]
[342829820,1732165841806,-153.516216,0.00028667,7]
[342829821,1732165841819,-253.715022,0.00028667,7]
[342829822,1732165841833,-151.0,0.00028667,7]
[342829823,1732165841844,-151.0,0.00028667,7]
[342829824,1732165841855,-229.717091,0.00028667,7]
[342829825,1732165841866,-229.717091,0.00028667,7]
[342829826,1732165841877,-224.452263,0.00028667,7]
[342829827,1732165841891,-224.452263,0.00028667,7]
[342829828,1732165841905,-324.126891,0.00028667,7]
[342829829,1732165841919,-151.0,0.00028667,7]
[342829830,1732165841933,-1192.693642,0.00028667,7]
[342829831,1732165841946,-1192.693642,0.00028667,7]
[342829832,1732165841958,-718.492232,0.00028667,7]
[342829833,1732165841984,-718.492232,0.00028667,7]
[342829834,1732165841996,-1352.09865,0.00028667,7]
[342829835,1732165842012,-623.483661,0.00028667,7]
[342829836,1732165842025,-1352.09865,0.00028667,7]
[342829837,1732165842036,-623.483661,0.00028667,7]
[342829838,1732165842048,-301.984354,0.00028667,7]
[342829839,1732165842060,-301.984354,0.00028667,7]
[342829840,1732165842072,-151.0,0.00028667,7]
[342829841,1732165842083,-271.385877,0.00028667,7]
[342829842,1732165842095,-151.0,0.00028667,7]
[342829843,1732165842108,-271.149504,0.00028667,7]
[342829844,1732165842123,-271.149504,0.00028667,7]
[342829845,1732165842134,-1143.936926,0.00028667,7]
[342829846,1732165842144,-1143.936926,0.00028667,7]
[342829847,1732165842156,-151.0,0.00028667,7]
[342829848,1732165842167,-240.507187,0.00028667,7]
[342829849,1732165842178,-240.507187,0.00028667,7]
[342829850,1732165842189,-151.0,0.00028667,7]
[342829851,1732165842201,-151.0,0.00028668,7]
[342829852,1732165842212,-151.0,0.00028669,7]
[342829853,1732165842226,-151.0,0.00028669,7]
[342829854,1732165842237,-199.175053,0.00028669,7]
[342829855,1732165842249,-253.715022,0.00028669,7]
[342829856,1732165842260,-253.715022,0.00028669,7]
[342829857,1732165842271,-253.715022,0.00028669,7]
[342829858,1732165842281,-253.715018,0.00028669,7]
[342829859,1732165842292,-151.0,0.00028669,7]
[342829860,1732165842304,-151.0,0.00028669,7]
[342829861,1732165842315,-217.666472,0.00028669,7]
[342829862,1732165842326,-151.0,0.00028669,7]
[342829863,1732165842338,-151.0,0.00028669,7]
[342829864,1732165842349,-162.158697,0.00028669,7]
[342829865,1732165842360,-229.717091,0.00028669,7]
[342829866,1732165842372,-229.717091,0.00028669,7]
[342829867,1732165842383,-229.717091,0.00028669,7]
[342829868,1732165842394,-229.717091,0.00028669,7]
[342829869,1732165842406,-229.717091,0.00028669,7]
[342829872,1732165842418,-229.717091,0.00028669,7]
[342829874,1732165842429,-229.717091,0.00028669,7]
[342829877,1732165842440,-229.717083,0.00028669,7]
[342829879,1732165842451,-224.452263,0.00028669,7]
[342829881,1732165842463,-224.452263,0.00028669,7]
[342829883,1732165842476,-224.452263,0.00028669,7]
[342829884,1732165842488,-224.452263,0.00028669,7]
[342829886,1732165842499,-224.452263,0.00028669,7]
[342829887,1732165842511,-224.452269,0.00028669,7]
[342829889,1732165842522,-324.126891,0.00028669,7]
[342829890,1732165842534,-324.126891,0.00028669,7]
[342829891,1732165842545,-324.126893,0.00028669,7]
[342829892,1732165842556,-271.229606,0.00028669,7]
[342829903,1732165842689,-1192.693642,0.00028669,7]
[342829906,1732165842707,-1192.693642,0.00028669,7]
[342829908,1732165842718,-1192.693642,0.00028669,7]
[342829910,1732165842728,-1192.693642,0.00028669,7]
[342829912,1732165842738,-1192.693642,0.00028669,7]
[342829914,1732165842748,-1192.693646,0.00028669,7]
[342829916,1732165842758,-718.492232,0.00028669,7]
[342829918,1732165842767,-718.492232,0.00028669,7]
[342829919,1732165842777,-718.492232,0.00028669,7]
[342829920,1732165842787,-718.492232,0.00028669,7]
[342829922,1732165842797,-718.492232,0.00028669,7]
[342829923,1732165842806,-718.492233,0.00028669,7]
[342829924,1732165842816,-3088.954404,0.00028669,7]
[342829925,1732165842826,-3088.954404,0.00028669,7]
[342829926,1732165842836,-3088.9544,0.00028669,7]
[342829927,1732165842845,-1352.09865,0.00028669,7]
[342829928,1732165842855,-1352.09865,0.00028669,7]
[342829929,1732165842864,-1352.09865,0.00028669,7]
[342829930,1732165842874,-1352.09865,0.00028669,7]
[342829931,1732165842883,-1352.09865,0.00028669,7]
[342829932,1732165842893,-1352.098651,0.00028669,7]
[342829934,1732165842902,-301.984354,0.00028669,7]
[342829935,1732165842912,-301.984354,0.00028669,7]
[342829936,1732165842922,-301.984354,0.00028669,7]
[342829938,1732165842931,-301.984354,0.00028669,7]
[342829939,1732165842940,-301.984354,0.00028669,7]
[342829940,1732165842949,-301.984351,0.00028669,7]
[342829942,1732165842960,-271.149504,0.00028669,7]
[342829943,1732165842974,-271.149504,0.00028669,7]
[342829945,1732165842983,-271.149504,0.00028669,7]
[342829947,1732165842992,-271.149504,0.00028669,7]
[342829949,1732165843003,-271.149504,0.00028669,7]
[342829950,1732165843013,-271.149497,0.00028669,7]
[342829951,1732165843022,-155.528434,0.00028669,7]
[342829952,1732165843032,-151.0,0.00028669,7]
[342829953,1732165843044,-240.507187,0.00028669,7]
[342829954,1732165843054,-240.507187,0.00028669,7]
[342829955,1732165843064,-706.149298,0.00028669,7]
[342829956,1732165843073,-706.149298,0.00028669,7]
[342829958,1732165843082,-500.0,0.00028673,5]
[342829959,1732165843091,-703.52731717,0.00028673,2]
[342829961,1732165843100,-703.52731717,0.00028673,2]
[342829963,1732165843109,-1594715.18385962,0.00028673,10]
[342829967,1732165843180,-36630.5999,0.00028673,10]
[342829972,1732165843277,-577.653,0.00026493,15]
[342829973,1732165843287,-4.76453839,0.000283,7]
[342829974,1732165843299,-146.23546161,0.000283,7]
[342829975,1732165843309,-151.0,0.000284,7]
[342829976,1732165843318,-235.989184,0.00028669,7]
[342829977,1732165843328,-62310.59404469,0.00028673,10]
[342829978,1732165843378,-306.0,0.00027699,30]
[342829979,1732165843387,-19619.42525673,0.00028673,10]
[342829980,1732165843403,-1190.38628636,0.00028673,10]
[342829981,1732165843575,-529.96,0.00026493,15]
[342829982,1732165843585,-304.475979,0.00027836,30]
[342829983,1732165843596,-129.492795,0.00028673,10]
[342830006,1732165846041,-483.58467535,0.00021917,2]
[342830007,1732165846053,-163.88294106,0.00027122,2]
[342830008,1732165846064,-3266.65809212,0.00028663,10]
[342830009,1732165846102,-1685.9458303,0.00027122,2]
[342830010,1732165846111,-11437.42190788,0.00028663,10]
[342830011,1732165846121,-22315.56639372,0.00028673,10]
[342830017,1732166352666,175.040902,0.00013973,2]
[342830022,1732166742216,300.0,0.00023,10]
[342830024,1732166783249,300.0,0.00016,4]
[342830025,1732166804669,300.0,0.00023,10]
[342830026,1732166811586,300.0,0.00023,11]
[342830061,1732166953124,300.0,0.00023,10]
[342830062,1732166963739,300.0,0.00016,4]
[342830063,1732166967818,300.0,0.00016,5]
[342830065,1732166990268,315.0,0.00016,4]
[342830066,1732166994914,315.0,0.00016,5]
[342830073,1732167018736,315.0,0.0002,10]
[342830097,1732167034893,-300.0,0.00018,5]
[342830098,1732167034903,-300.0,0.00018986,2]
[342830099,1732167034913,-300.0,0.00018986,2]
[342830100,1732167034922,-1048.0,0.00018986,2]
[342830101,1732167034934,-15805.0,0.00018986,2]
[342830102,1732167034944,-186.6820724,0.00018987,2]
[342830103,1732167034953,-5664.59722066,0.00018987,2]
[342830104,1732167034965,-9181.05177193,0.00018987,2]
[342830105,1732167034975,-300.0,0.00019,5]
[342830106,1732167034984,-300.0,0.00019,6]
[342830107,1732167034991,-300.0,0.0002,6]
[342830108,1732167034998,-300.0,0.0002,7]
[342830109,1732167035007,-315.0,0.0002,5]
[342830110,1732167035015,-315.0,0.0002,7]
[342830111,1732167035022,-310.95849362,0.0002,8]
[342830112,1732167035029,-3000.0,0.00020468,2]
[342830113,1732167035038,-223.7014939,0.00020549,2]
[342830114,1732167035046,-3739.68439055,0.00020549,2]
[342830124,1732167038337,-21160.31560945,0.00020549,2]
[342830125,1732167038346,-152.0,0.00020594,2]
[342830126,1732167038356,-420.0,0.00020695,2]
[342830127,1732167038365,-536.771621,0.00020704,2]
[342830128,1732167038375,-167.844102,0.00020774,2]
[342830129,1732167038384,-308.0,0.00020885,2]
[342830130,1732167038393,-712.734468,0.00020902,2]
[342830131,1732167038402,-493.2677209,0.00020935,2]
[342830132,1732167038411,-278.2162715,0.00020954,2]
[342830133,1732167038420,-536.771621,0.00021389,2]
[342830134,1732167038429,-500.0,0.00021917,2]
[342830135,1732167038438,-500.0,0.00021917,2]
[342830136,1732167038447,-352.51476679,0.00021917,2]
[342830137,1732167038456,-507.07363414,0.00021917,2]
[342830138,1732167038466,-500.0,0.00021917,2]
[342830139,1732167038477,-500.0,0.00021917,2]
[342830140,1732167038486,-526.05865371,0.00021917,2]
[342830141,1732167038495,-500.0,0.00021917,2]
[342830142,1732167038504,-500.96061046,0.00021917,2]
[342830144,1732167038514,-500.0,0.00021917,2]
[342830146,1732167038523,-500.0,0.00021917,2]
[342830148,1732167038531,-500.0,0.00021917,2]
[342830150,1732167038540,-500.0,0.00021917,2]
[342830152,1732167038549,-500.0,0.00021917,2]
[342830154,1732167038559,-500.0,0.00021917,2]
[342830156,1732167038568,-500.0,0.00021917,2]
[342830158,1732167038578,-500.0,0.00021917,2]
[342830160,1732167038587,-500.0,0.00021917,2]
[342830162,1732167038597,-500.0,0.00021917,2]
[342830164,1732167038606,-500.0,0.00021917,2]
[342830166,1732167038615,-500.0,0.00021917,2]
[342830168,1732167038625,-500.0,0.00021917,2]
[342830170,1732167038634,-500.0,0.00021917,2]
[342830172,1732167038644,-500.0,0.00021992,2]
[342830174,1732167038654,-500.0,0.00021992,2]
[342830176,1732167038663,-500.0,0.00021992,2]
[342830178,1732167038673,-200.0,0.00021992,2]
[342830180,1732167038683,-191.67001574,0.00021992,2]
[342830182,1732167038693,-177.66262691,0.00021992,2]
[342830184,1732167038705,-506.18494225,0.00021992,2]
[342830186,1732167038715,-522.70044151,0.00021992,2]
[342830188,1732167038727,-502.64616925,0.00021992,2]
[342830190,1732167038736,-500.0,0.00021992,2]
[342830193,1732167038746,-500.0,0.00021992,2]
[342830194,1732167038756,-500.0,0.00021992,2]
[342830196,1732167038766,-500.0,0.00021992,2]
[342830199,1732167038778,-500.0,0.00021992,2]
[342830200,1732167038797,-500.0,0.00021992,2]
[342830202,1732167038818,-503.35068361,0.00021992,2]